bitfinex/quotes_SOLUSD_20250403
["timestamp","ask_amount","ask_price","bid_price","bid_amount"]
[1743682011184,1.6646,115.58,115.54,32.70738237]
[1743682011379,32.70738237,115.6,115.55,32.70738237]
[1743682011564,16.5931,115.61,115.56,32.70738237]
[1743682011758,49.30048237,115.61,115.56,32.70738237]
[1743682011959,0.063,115.61,115.58,32.70738237]
[1743682012382,0.063,115.61,115.57,32.70738237]
[1743682012989,0.03,115.58,115.57,32.70738237]
[1743682014686,0.03,115.58,115.57,41.36008237]
[1743682016181,0.03,115.58,115.57,41.64440551]
[1743682017384,0.03,115.58,115.57,60.43621594]
[1743682017588,0.03,115.58,115.57,68.31621594]
[1743682022603,0.03,115.58,115.57,49.52440551]
[1743682022816,0.03,115.58,115.52,323.86]
[1743682022970,32.73738237,115.58,115.54,32.70738237]
[1743682023804,0.03,115.58,115.55,32.70738237]
[1743682023995,0.03,115.58,115.56,32.70738237]
[1743682024393,0.03,115.58,115.57,32.70738237]
[1743682024765,0.03,115.58,115.56,8.6529]
[1743682024766,0.03,115.58,115.55,41.36088237]
[1743682024994,0.03,115.58,115.56,32.70738237]
[1743682025188,0.03,115.58,115.57,32.70738237]
[1743682026288,0.03,115.58,115.55,32.70738237]
[1743682026785,32.73738237,115.58,115.53,8.6553]
[1743682026984,32.73738237,115.58,115.53,41.36268237]
[1743682027802,32.73738237,115.58,115.54,32.70738237]
[1743682028000,0.03,115.58,115.57,32.70738237]
[1743682029401,0.03,115.58,115.57,41.36008237]
[1743682030491,0.03,115.58,115.57,41.64440551]
[1743682031816,0.03,115.58,115.57,60.43621594]
[1743682032171,0.063,115.61,115.6,26.28432314]
[1743682032509,0.063,115.62,115.61,18.79181043]
[1743682032890,0.063,115.62,115.61,84.49089831]
[1743682033595,0.063,115.62,115.61,93.14059831]
[1743682034506,0.063,115.62,115.61,60.43321594]
[1743682035005,0.063,115.62,115.61,41.64140551]
[1743682035589,0.063,115.62,115.61,60.43321594]
[1743682036006,0.063,115.62,115.61,93.14059831]
[1743682036584,0.063,115.62,115.61,60.43321594]
[1743682036798,0.063,115.62,115.61,41.64140551]
[1743682038177,0.063,115.62,115.61,8.93402314]
[1743682038381,0.063,115.62,115.61,41.64140551]
[1743682038598,0.063,115.62,115.6,32.70738237]
[1743682038804,0.063,115.62,115.59,32.70738237]
[1743682039317,0.063,115.62,115.61,32.70738237]
[1743682040314,0.063,115.62,115.59,8.6506]
[1743682040620,0.063,115.62,115.58,16.5116]
[1743682040804,1.5061,115.61,115.57,89.3523]
[1743682041004,1.5061,115.61,115.57,41.35968237]
[1743682041202,1.5061,115.61,115.58,32.70738237]
[1743682041398,1.5061,115.61,115.6,32.70738237]
[1743682042113,0.063,115.62,115.6,32.70738237]
[1743682042417,0.063,115.62,115.61,32.70738237]
[1743682042793,0.063,115.62,115.6,32.70738237]
[1743682043717,0.063,115.62,115.61,32.70738237]
[1743682044818,0.063,115.62,115.58,32.70738237]
[1743682045110,32.70738237,115.6,115.56,323.78]
[1743682045422,32.70738237,115.61,115.56,41.36078237]
[1743682046211,8.6505,115.6,115.56,41.36078237]
[1743682046408,41.35748237,115.61,115.57,32.70738237]
[1743682046805,0.063,115.62,115.59,32.70738237]
[1743682047102,8.7121,115.62,115.59,32.70738237]
[1743682049313,8.7121,115.62,115.59,32.77038237]
[1743682049503,0.063,115.62,115.59,41.42128237]
[1743682049704,0.063,115.62,115.59,32.77038237]
[1743682050713,0.063,115.62,115.6,32.70738237]
[1743682050907,0.063,115.62,115.61,32.70738237]
[1743682052130,0.063,115.62,115.59,8.7138]
[1743682052340,0.063,115.62,115.59,32.77038237]
[1743682052625,32.77038237,115.62,115.59,0.063]
[1743682054424,8.6497,115.61,115.59,0.063]
[1743682054609,0.063,115.62,115.6,32.70738237]
[1743682054810,0.063,115.62,115.61,32.70738237]
[1743682055205,0.063,115.62,115.6,32.70738237]
[1743682055619,0.063,115.62,115.61,32.70738237]
[1743682056221,0.063,115.62,115.61,41.35708237]
[1743682056927,0.063,115.62,115.61,32.70738237]
[1743682057630,0.063,115.62,115.59,0.063]
[1743682057934,0.063,115.62,115.6,32.70738237]
[1743682059033,32.77038237,115.62,115.59,0.063]
[1743682059217,32.70738237,115.61,115.59,0.063]
[1743682059550,32.70738237,115.6,115.59,0.063]
[1743682059924,48.36388237,115.61,115.59,0.063]
[1743682060243,32.70738237,115.6,115.59,0.063]
[1743682060423,41.35788237,115.6,115.59,0.063]
[1743682061422,8.6505,115.6,115.59,0.063]
[1743682061740,24.3066,115.61,115.59,0.063]
[1743682062550,1.6259,115.61,115.59,32.77038237]
[1743682062739,10.2757,115.61,115.59,32.77038237]
[1743682063115,10.2757,115.61,115.59,0.063]
[1743682063847,1.6259,115.61,115.59,32.77038237]
[1743682064145,10.2756,115.61,115.59,32.77038237]
[1743682064329,0.063,115.62,115.59,0.063]
[1743682064524,0.063,115.62,115.6,32.70738237]
[1743682064727,0.063,115.62,115.61,32.70738237]
[1743682065140,0.063,115.62,115.6,32.70738237]
[1743682065936,32.77038237,115.62,115.59,0.063]
[1743682066138,32.70738237,115.61,115.59,0.063]
[1743682066438,32.70738237,115.6,115.59,0.063]
[1743682067942,41.35708237,115.61,115.59,0.063]
[1743682069240,8.6497,115.61,115.59,0.063]
[1743682069416,41.35708237,115.61,115.59,0.063]
[1743682070143,8.6497,115.61,115.59,0.063]
[1743682070329,8.7121,115.62,115.59,0.063]
[1743682071023,8.7121,115.62,115.59,32.77038237]
[1743682071832,100.0,115.61,115.59,32.77038237]
[1743682072433,100.0,115.61,115.59,41.42138237]
[1743682075255,98.85887532,115.61,115.59,32.77038237]
[1743682075848,98.85887532,115.61,115.59,41.42148237]
[1743682078053,98.85887532,115.61,115.6,32.70738237]
[1743682079660,98.85887532,115.61,115.59,41.42148237]
[1743682079960,98.85887532,115.61,115.59,32.77038237]
[1743682080138,107.50867532,115.61,115.59,0.063]
[1743682080653,98.85887532,115.61,115.59,0.063]
[1743682081962,107.50867532,115.61,115.59,0.063]
[1743682082340,98.85887532,115.61,115.59,0.063]
[1743682082535,98.85887532,115.61,115.59,32.77038237]
[1743682082741,98.85887532,115.61,115.59,0.063]
[1743682082949,98.85887532,115.61,115.6,32.70738237]
[1743682083276,98.85887532,115.61,115.59,0.063]
[1743682083569,107.50867532,115.61,115.59,32.77038237]
[1743682083867,107.50867532,115.61,115.59,0.063]
[1743682084167,98.85887532,115.61,115.59,0.063]
[1743682084473,98.85887532,115.61,115.59,20.48939597]
[1743682085073,98.85887532,115.61,115.6,20.42639597]
[1743682085364,98.85887532,115.61,115.6,29.07689597]
[1743682085675,98.88887532,115.61,115.6,20.42639597]
[1743682090363,107.53867532,115.61,115.59,0.063]
[1743682090568,98.88887532,115.61,115.59,0.063]
[1743682091069,107.53877532,115.61,115.59,0.063]
[1743682092679,98.88887532,115.61,115.59,0.063]
[1743682092971,98.88887532,115.61,115.6,20.42639597]
[1743682094344,98.88887532,115.61,115.6,29.07689597]
[1743682095175,98.88887532,115.61,115.6,20.42639597]
[1743682095671,98.88887532,115.61,115.6,29.07689597]
[1743682096280,98.88887532,115.61,115.6,8.6505]
[1743682096580,98.88887532,115.61,115.6,20.42639597]
[1743682097544,148.88887532,115.61,115.6,20.42639597]
[1743682098366,148.88887532,115.61,115.6,29.07689597]
[1743682099281,148.88887532,115.61,115.6,8.6505]
[1743682099453,148.88887532,115.61,115.59,29.14019597]
[1743682099772,148.88887532,115.61,115.59,8.7138]
[1743682099957,148.88887532,115.61,115.59,29.14019597]
[1743682100380,148.88887532,115.61,115.59,20.48939597]
[1743682100556,157.53867532,115.61,115.59,0.063]
[1743682101169,177.96507129,115.61,115.59,0.063]
[1743682101370,21.96019597,115.6,115.59,0.063]
[1743682102106,1.5338,115.6,115.59,0.063]
[1743682103397,10.1843,115.6,115.59,0.063]
[1743682104575,1.5338,115.6,115.59,0.063]
[1743682105389,148.88887532,115.61,115.59,20.48939597]
[1743682105790,148.88887532,115.61,115.59,29.14059597]
[1743682105996,148.88887532,115.61,115.6,20.42639597]
[1743682108202,148.88887532,115.61,115.6,29.07689597]
[1743682109688,148.88887532,115.61,115.6,29.13989597]
[1743682110205,148.88887532,115.61,115.6,20.48939597]
[1743682110698,148.88887532,115.61,115.6,29.42421911]
[1743682110880,148.88887532,115.61,115.6,29.13989597]
[1743682115508,148.88887532,115.61,115.6,29.42421911]
[1743682115682,148.88887532,115.61,115.6,29.13989597]
[1743682117915,148.88887532,115.61,115.6,20.48939597]
[1743682119115,148.88887532,115.61,115.6,0.063]
[1743682119293,148.88887532,115.61,115.6,20.48939597]
[1743682120315,177.96497129,115.61,115.6,0.063]
[1743682120497,184.47437129,115.61,115.6,0.063]
[1743682123316,164.04797532,115.61,115.6,0.063]
[1743682125289,184.47437129,115.61,115.6,0.063]
[1743682127017,164.04797532,115.61,115.6,0.063]
[1743682128415,184.47437129,115.61,115.6,0.063]
[1743682129023,184.47437129,115.61,115.59,0.063]
[1743682129316,20.42639597,115.6,115.59,0.063]
[1743682129520,29.07689597,115.6,115.59,0.063]
[1743682130798,8.6505,115.6,115.59,0.063]
[1743682133629,157.53897532,115.61,115.59,0.063]
[1743682133995,148.88887532,115.61,115.6,13.07369338]
[1743682135822,148.88887532,115.61,115.6,20.42205036]
[1743682136118,148.88887532,115.61,115.59,20.48505036]
[1743682137021,157.53867532,115.61,115.59,0.063]
[1743682137223,157.53867532,115.61,115.59,20.48505036]
[1743682137391,157.53867532,115.61,115.59,0.063]
[1743682139021,157.53867532,115.61,115.59,20.48505036]
[1743682139535,148.88887532,115.61,115.6,20.42205036]
[1743682139697,148.88887532,115.61,115.6,20.7063735]
[1743682140196,148.88887532,115.61,115.6,29.3568735]
[1743682141098,148.88887532,115.61,115.6,20.42205036]
[1743682141619,148.88887532,115.61,115.59,20.48505036]
[1743682141931,148.88887532,115.61,115.6,20.42205036]
[1743682142235,157.53857532,115.61,115.59,0.063]
[1743682142429,179.55692568,115.61,115.59,0.063]
[1743682142928,0.14216157,115.59,115.5,350.73385036]
[1743682143132,20.42205036,115.58,115.54,20.42205036]
[1743682143439,201.18132568,115.61,115.56,20.42205036]
[1743682144029,20.42205036,115.6,115.59,0.063]
[1743682144215,29.07255036,115.6,115.59,0.063]
[1743682145727,8.6505,115.6,115.59,0.063]
[1743682146102,159.13527532,115.61,115.59,0.063]
[1743682146419,150.48517532,115.61,115.59,20.48505036]
[1743682146624,148.88887532,115.61,115.6,20.42205036]
[1743682147732,148.88887532,115.61,115.6,20.84853507]
[1743682147936,148.88887532,115.61,115.6,39.49818393]
[1743682148319,148.88887532,115.61,115.6,48.14868393]
[1743682151449,148.88887532,115.61,115.6,29.07255036]
[1743682152745,148.88887532,115.61,115.6,29.3568735]
[1743682153342,148.88887532,115.61,115.6,48.14868393]
[1743682153343,0.78116277,115.61,115.6,48.14868393]
[1743682154157,0.063,115.62,115.61,25.47853357]
[1743682154331,0.063,115.63,115.61,66.32263429]
[1743682154519,0.03,115.67,115.64,0.28432314]
[1743682154718,0.03,115.67,115.66,20.42205036]
[1743682155352,0.03,115.67,115.66,29.3523735]
[1743682157116,0.03,115.67,115.66,29.06805036]
[1743682161321,0.03,115.67,115.66,29.3523735]
[1743682161725,0.03,115.73,115.7,0.5]
[1743682161923,1.6378,115.8,115.76,26.0]
[1743682162143,1.6378,115.8,115.77,28.4663735]
[1743682162328,0.03,115.8,115.77,47.25818393]
[1743682162529,0.03,115.8,115.77,28.4663735]
[1743682163626,0.03,115.8,115.77,37.1041735]
[1743682165351,20.45205036,115.8,115.76,20.42205036]
[1743682165527,0.03,115.8,115.76,20.42205036]
[1743682165722,0.03,115.8,115.77,20.7063735]
[1743682166254,0.03,115.8,115.77,28.18205036]
[1743682166950,0.03,115.8,115.77,20.7063735]
[1743682167833,0.03,115.8,115.77,20.42205036]
[1743682168340,0.03,115.8,115.77,29.05985036]
[1743682170260,0.03,115.8,115.76,20.42205036]
[1743682170432,20.42205036,115.79,115.72,29.3635]
[1743682170631,1.659,115.78,115.75,20.42205036]
[1743682171042,1.659,115.78,115.76,20.42205036]
[1743682171358,10.2961,115.78,115.75,20.42205036]
[1743682171561,1.659,115.78,115.76,20.42205036]
[1743682172337,1.659,115.78,115.77,20.42205036]
[1743682176382,0.03,115.78,115.77,20.42205036]
[1743682176678,0.03,115.78,115.77,29.05985036]
[1743682176886,0.03,115.78,115.77,29.3441735]
[1743682178080,0.03,115.78,115.77,48.13598393]
[1743682178769,0.03,115.78,115.77,52.47861678]
[1743682178975,0.03,115.78,115.77,48.13598393]
[1743682179269,0.03,115.78,115.77,29.3441735]
[1743682181858,0.03,115.78,115.77,52.44105747]
[1743682182641,0.03,115.8,115.79,44.79181043]
[1743682182846,0.03,115.8,115.79,85.92023429]
[1743682183652,0.03,115.81,115.8,0.28432314]
[1743682183850,0.03,115.81,115.8,48.88842386]
[1743682184683,1.5261,115.87,115.8,74.5080153]
[1743682184861,1.5261,115.87,115.86,20.42205036]
[1743682185248,1.5261,115.87,115.85,20.42205036]
[1743682185573,10.1565,115.87,115.85,20.42205036]
[1743682185965,1.5261,115.87,115.85,20.42205036]
[1743682186784,1.5261,115.87,115.86,20.42205036]
[1743682187284,1.5261,115.87,115.83,8.91752314]
[1743682187487,1.5261,115.87,115.86,20.42205036]
[1743682187861,8.6292,115.89,115.86,20.42205036]
[1743682188050,8.6292,115.89,115.87,20.42205036]
[1743682188257,8.6292,115.89,115.86,20.42205036]
[1743682188687,8.6292,115.89,115.87,20.42205036]
[1743682188857,10.2828,115.9,115.87,20.42205036]
[1743682191488,1.6546,115.9,115.88,20.42205036]
[1743682191697,0.03,115.9,115.89,20.42205036]
[1743682193509,0.03,115.9,115.89,39.49818393]
[1743682194370,0.03,115.9,115.89,48.12698393]
[1743682194592,0.03,115.9,115.89,39.49818393]
[1743682195596,0.03,115.9,115.89,48.12698393]
[1743682195765,0.03,115.9,115.89,39.49818393]
[1743682196183,0.03,115.9,115.89,48.12698393]
[1743682196385,1.5952,115.97,115.95,20.42205036]
[1743682196583,10.2182,115.97,115.9,0.28432314]
[1743682196794,20.42205036,115.96,115.92,20.42205036]
[1743682197493,52.19745036,115.97,115.93,20.42205036]
[1743682198291,10.2182,115.97,115.94,20.42205036]
[1743682198509,1.5952,115.97,115.95,20.42205036]
[1743682198800,1.5952,115.97,115.94,20.42205036]
[1743682199181,28.09235036,116.01,115.93,0.28432314]
[1743682199381,20.42205036,116.0,115.96,20.42205036]
[1743682199582,29.04265036,116.0,115.96,20.42205036]
[1743682200101,50.59435036,116.0,115.96,20.42205036]
[1743682200508,50.59435036,116.0,115.95,20.42205036]
[1743682200806,8.6206,116.0,115.96,20.42205036]
[1743682200973,8.6206,116.0,115.97,20.42205036]
[1743682201175,8.6206,116.0,115.96,20.42205036]
[1743682201378,29.04265036,116.0,115.96,20.42205036]
[1743682201582,29.04265036,116.0,115.95,20.42205036]
[1743682201783,8.6206,116.0,115.95,20.42205036]
[1743682202078,20.42205036,115.99,115.94,7.8]
[1743682202271,20.42205036,115.99,115.94,28.22205036]
[1743682202471,20.42205036,115.99,115.95,20.42205036]
[1743682202969,50.59435036,116.0,115.95,20.42205036]
[1743682203401,20.42205036,115.99,115.95,20.42205036]
[1743682204207,8.6221,115.98,115.95,20.42205036]
[1743682205277,8.6221,115.98,115.94,28.22205036]
[1743682205585,8.6221,115.98,115.95,20.42205036]
[1743682207087,8.6518,115.99,115.96,20.42205036]
[1743682207592,8.6518,115.99,115.91,14.9966]
[1743682207593,20.42205036,115.98,115.91,6.3697]
[1743682207903,1.5696,115.96,115.92,20.42205036]
[1743682208106,21.99165036,115.96,115.92,20.42205036]
[1743682208407,21.99165036,115.96,115.91,20.42205036]
[1743682208590,21.99165036,115.96,115.92,20.42205036]
[1743682208792,1.5696,115.96,115.92,20.42205036]
[1743682208987,8.6244,115.95,115.92,20.42205036]
[1743682209388,29.04645036,115.95,115.91,20.42205036]
[1743682209592,20.42205036,115.93,115.89,20.42205036]
[1743682209799,165.8854,115.95,115.9,20.42205036]
[1743682209996,20.42205036,115.94,115.9,20.42205036]
[1743682210704,20.42205036,115.91,115.88,323.04]
[1743682210908,20.42205036,115.91,115.82,7.82]
[1743682210909,8.6296,115.88,115.82,7.82]
[1743682211094,8.6296,115.88,115.81,0.063]
[1743682211095,20.42205036,115.87,115.81,0.063]
[1743682211408,20.42205036,115.85,115.81,20.48505036]
[1743682211616,0.5,115.74,115.73,13.35329178]
[1743682211816,0.5,115.78,115.73,33.77534214]
[1743682211980,0.5,115.79,115.75,20.42205036]
[1743682212183,0.5,115.79,115.76,20.42205036]
[1743682212387,0.5,115.79,115.77,20.42205036]
[1743682213000,1.5419,115.81,115.76,20.42205036]
[1743682213001,0.5,115.78,115.76,20.42205036]
[1743682213792,0.5,115.78,115.76,32.58109722]
[1743682214815,2.0419,115.81,115.77,32.58109722]
[1743682215111,0.5,115.78,115.77,32.58109722]
[1743682215915,0.5,115.78,115.74,32.58109722]
[1743682216209,0.5,115.78,115.75,32.58109722]
[1743682216393,0.5,115.78,115.76,0.063]
[1743682217692,0.5,115.78,115.77,32.58109722]
[1743682218207,0.5,115.78,115.76,0.063]
[1743682218515,0.5,115.77,115.76,0.063]
[1743682219095,0.5,115.77,115.76,32.64409722]
[1743682219403,0.5,115.78,115.76,32.64409722]
[1743682220402,0.5,115.78,115.76,0.063]
[1743682220604,32.58109722,115.77,115.76,0.063]
[1743682220805,33.08109722,115.77,115.76,0.063]
[1743682220997,0.5,115.77,115.76,0.063]
[1743682221499,0.5,115.79,115.76,32.64409722]
[1743682221694,0.5,115.77,115.76,32.64409722]
[1743682221897,0.5,115.77,115.76,0.063]
[1743682222926,33.08109722,115.77,115.76,0.063]
[1743682224024,41.71889722,115.77,115.76,0.063]
[1743682224227,88.31573079,115.77,115.76,0.063]
[1743682224398,0.5,115.7,115.69,0.063]
[1743682224604,33.08109722,115.7,115.69,0.063]
[1743682225023,41.72409722,115.7,115.69,0.063]
[1743682225525,33.08109722,115.7,115.69,0.063]
[1743682225721,0.5,115.7,115.69,0.063]
[1743682227030,33.08109722,115.71,115.69,0.063]
[1743682227333,0.5,115.72,115.69,32.64409722]
[1743682227518,0.5,115.7,115.69,32.64409722]
[1743682228136,0.5,115.72,115.69,32.64409722]
[1743682228308,0.5,115.7,115.69,32.64409722]
[1743682228634,0.5,115.72,115.69,32.64409722]
[1743682228929,0.5,115.73,115.7,32.58109722]
[1743682229512,0.5,115.7,115.69,0.063]
[1743682230039,0.5,115.72,115.69,0.063]
[1743682230215,0.5,115.7,115.69,0.063]
[1743682230421,0.5,115.72,115.69,32.64409722]
[1743682230631,0.5,115.71,115.69,32.64409722]
[1743682230930,0.5,115.74,115.7,32.86542036]
[1743682231117,0.5,115.71,115.69,0.063]
[1743682231322,0.5,115.7,115.69,0.063]
[1743682231525,33.08109722,115.7,115.69,0.063]
[1743682231919,51.87290765,115.7,115.69,0.063]
[1743682232122,0.5,115.64,115.62,0.063]
[1743682232312,0.5,115.64,115.62,32.64409722]
[1743682232514,0.5,115.66,115.62,0.063]
[1743682232750,26.5,115.67,115.63,32.58109722]
[1743682233055,170.42989722,115.68,115.63,32.58109722]
[1743682233347,0.5,115.66,115.65,0.28432314]
[1743682234838,0.5,115.68,115.65,0.28432314]
[1743682235131,32.58109722,115.69,115.65,32.86542036]
[1743682235132,0.5,115.69,115.65,32.86542036]
[1743682235341,0.5,115.68,115.66,32.58109722]
[1743682235838,0.5,115.66,115.64,32.58109722]
[1743682236015,0.5,115.66,115.63,40.50109722]
[1743682236215,0.5,115.66,115.64,32.58109722]
[1743682236731,25.96,115.71,115.65,33.00758193]
[1743682236732,0.5,115.68,115.65,33.00758193]
[1743682236931,0.5,115.68,115.66,32.58109722]
[1743682237535,0.5,115.67,115.64,32.58109722]
[1743682238441,0.5,115.67,115.66,32.72325879]
[1743682238738,0.5,115.67,115.65,32.72325879]
[1743682239118,0.5,115.69,115.65,32.72325879]
[1743682239441,0.5,115.68,115.66,32.72325879]
[1743682239751,0.5,115.68,115.66,32.58109722]
[1743682239926,0.5,115.68,115.65,32.86542036]
[1743682240326,0.5,115.68,115.66,32.58109722]
[1743682241630,0.5,115.67,115.65,7.92]
[1743682241832,0.5,115.66,115.62,0.20516157]
[1743682242029,0.5,115.64,115.62,32.64409722]
[1743682242226,0.5,115.64,115.62,0.063]
[1743682242437,0.5,115.64,115.62,32.64409722]
[1743682242945,0.5,115.63,115.62,32.64409722]
[1743682243530,0.5,115.65,115.62,32.64409722]
[1743682243743,0.5,115.64,115.63,32.58109722]
[1743682244138,0.5,115.65,115.63,32.58109722]
[1743682244546,0.5,115.66,115.64,32.58109722]
[1743682245144,0.5,115.66,115.64,40.50109722]
[1743682246150,0.5,115.68,115.65,32.86542036]
[1743682246338,0.5,115.67,115.65,32.86542036]
[1743682247856,0.5,115.67,115.65,0.28432314]
[1743682248034,0.5,115.67,115.65,32.86542036]
[1743682248435,0.5,115.68,115.66,32.58109722]
[1743682249155,0.5,115.68,115.62,0.063]
[1743682249156,0.5,115.63,115.62,0.063]
[1743682249739,0.5,115.68,115.62,66.84625879]
[1743682249933,0.53,115.69,115.63,0.14216157]
[1743682250138,0.5,115.68,115.65,32.58109722]
[1743682250358,0.5,115.68,115.66,8.14]
[1743682250870,0.5,115.68,115.66,40.72109722]
[1743682251039,0.5,115.68,115.67,32.58109722]
[1743682251360,0.53,115.69,115.67,32.86542036]
[1743682252129,0.53,115.69,115.67,32.58109722]
[1743682252355,0.5,115.68,115.65,0.063]
[1743682252535,0.5,115.68,115.65,8.223]
[1743682253157,0.5,115.68,115.65,0.063]
[1743682253336,0.5,115.66,115.65,0.063]
[1743682255455,10.7335,115.68,115.65,0.063]
[1743682255756,2.0886,115.68,115.65,0.063]
[1743682255956,2.0886,115.68,115.65,32.64409722]
[1743682256362,0.5,115.67,115.65,0.063]
[1743682256863,2.0886,115.68,115.65,32.64409722]
[1743682257058,0.5,115.66,115.65,0.063]
[1743682257765,0.5,115.67,115.65,0.063]
[1743682257958,0.5,115.66,115.65,0.063]
[1743682258960,33.08109722,115.66,115.65,0.063]
[1743682259148,39.24599722,115.66,115.65,0.063]
[1743682260265,47.89199722,115.66,115.65,0.063]
[1743682263165,39.24599722,115.66,115.65,0.063]
[1743682263360,47.89199722,115.66,115.65,0.063]
[1743682264446,33.08109722,115.66,115.65,0.063]
[1743682265465,0.5,115.66,115.65,0.063]
[1743682265972,0.5,115.67,115.65,0.063]
[1743682266348,0.5,115.66,115.65,0.063]
[1743682266561,0.5,115.67,115.65,0.063]
[1743682266940,0.5,115.67,115.65,32.64409722]
[1743682267871,0.53,115.69,115.65,32.64409722]
[1743682268079,0.5,115.67,115.65,32.64409722]
[1743682268577,0.5,115.67,115.65,0.34732314]
[1743682269148,0.53,115.69,115.66,32.58109722]
[1743682269354,0.03,115.69,115.68,32.58109722]
[1743682270369,0.03,115.69,115.68,32.86542036]
[1743682270671,0.03,115.69,115.68,0.28432314]
[1743682270886,0.03,115.69,115.68,32.86542036]
[1743682274368,0.03,115.69,115.68,0.28432314]
[1743682274668,0.03,115.69,115.68,32.86542036]
[1743682276666,0.03,115.69,115.68,51.65723079]
[1743682276857,0.03,115.69,115.68,19.07613357]
[1743682277481,0.03,115.69,115.68,51.65723079]
[1743682277678,0.03,115.69,115.68,39.46272695]
[1743682277985,0.03,115.69,115.66,28.38659338]
[1743682278675,0.5,115.68,115.65,20.44959338]
[1743682278877,0.5,115.68,115.65,0.063]
[1743682279080,20.88659338,115.66,115.65,0.063]
[1743682279687,0.5,115.66,115.65,0.063]
[1743682280188,41.7991372,115.67,115.65,0.063]
[1743682280387,0.5,115.66,115.65,0.063]
[1743682280686,33.1536372,115.66,115.65,0.063]
[1743682280896,168.8536372,115.66,115.65,0.063]
[1743682281973,177.4996372,115.66,115.65,0.063]
[1743682283489,196.29144763,115.66,115.65,0.063]
[1743682283786,88.45457077,115.66,115.65,0.063]
[1743682284789,43.4184372,115.66,115.65,0.063]
[1743682285159,62.21024763,115.66,115.65,0.063]
[1743682285360,62.21024763,115.66,115.62,0.063]
[1743682285361,32.7141,115.63,115.62,0.063]
[1743682285560,65.3677372,115.63,115.62,0.063]
[1743682286086,74.0159372,115.63,115.62,0.063]
[1743682287087,92.80774763,115.63,115.62,0.063]
[1743682287272,93.09207077,115.63,115.62,0.063]
[1743682287989,92.80774763,115.63,115.62,0.063]
[1743682288962,93.09207077,115.63,115.62,0.063]
[1743682289287,0.5,115.6,115.59,0.063]
[1743682289462,33.1536372,115.6,115.59,0.063]
[1743682289664,0.5,115.61,115.59,0.063]
[1743682289882,79.55114763,115.6,115.59,0.063]
[1743682290069,0.5,115.56,115.53,0.063]
[1743682290273,0.5,115.55,115.53,0.063]
[1743682291166,0.5,115.54,115.53,0.063]
[1743682291795,0.5,115.55,115.53,0.063]
[1743682291970,6.0664,115.57,115.53,0.063]
[1743682291971,0.5,115.57,115.53,32.7166372]
[1743682292167,0.5,115.55,115.53,32.7166372]
[1743682292490,0.5,115.55,115.53,0.063]
[1743682292684,0.5,115.54,115.53,0.063]
[1743682293594,41.8076372,115.56,115.53,0.063]
[1743682293778,0.5,115.54,115.53,0.063]
[1743682294178,41.8076372,115.56,115.53,0.063]
[1743682294380,0.5,115.54,115.53,0.063]
[1743682295390,136.2,115.55,115.53,0.063]
[1743682295589,0.5,115.54,115.53,0.063]
[1743682297287,135.7,115.55,115.53,0.063]
[1743682297471,0.5,115.55,115.53,32.7166372]
[1743682297674,0.5,115.57,115.53,32.7166372]
[1743682297864,0.5,115.55,115.53,0.063]
[1743682299672,0.5,115.54,115.53,0.063]
[1743682300776,135.7,115.55,115.53,0.063]
[1743682300975,0.5,115.57,115.53,20.51446772]
[1743682301173,29.10386772,115.58,115.53,20.51446772]
[1743682301174,0.5,115.58,115.54,20.45146772]
[1743682301402,0.5,115.57,115.53,0.063]
[1743682301610,0.5,115.56,115.53,20.51446772]
[1743682301970,0.5,115.56,115.54,20.45146772]
[1743682302169,0.5,115.54,115.53,0.063]